bitfinex/quotes_BTCUSD_20250719
["timestamp","ask_amount","ask_price","bid_price","bid_amount"]
[1752903199077,0.01415383,118250.0,118240.0,0.83710761]
[1752903199485,0.03106599,118250.0,118240.0,0.83710761]
[1752903199687,0.03106599,118250.0,118240.0,0.82865074]
[1752903199902,0.02260984,118250.0,118240.0,0.83710761]
[1752903200125,0.01415383,118250.0,118240.0,0.83710761]
[1752903201492,0.01415383,118250.0,118240.0,0.45055829]
[1752903201975,0.01415383,118250.0,118240.0,0.83710761]
[1752903203075,0.02260984,118250.0,118240.0,0.83710761]
[1752903205400,0.01415383,118250.0,118240.0,0.83710761]
[1752903206054,0.02260991,118250.0,118240.0,0.83710761]
[1752903207459,0.01415383,118250.0,118240.0,0.83710761]
[1752903208884,0.02260984,118250.0,118240.0,0.83710761]
[1752903209184,0.01415383,118250.0,118240.0,0.83710761]
[1752903210526,0.01415383,118250.0,118240.0,1.03038227]
[1752903210642,0.01415383,118250.0,118240.0,0.83710761]
[1752903222402,4.98e-05,118250.0,118240.0,0.83710761]
[1752903223011,4.98e-05,118250.0,118240.0,1.03038227]
[1752903223414,4.98e-05,118250.0,118240.0,0.83710761]
[1752903224980,4.98e-05,118250.0,118240.0,0.45055829]
[1752903225174,4.98e-05,118250.0,118240.0,0.83710761]
[1752903229016,4.98e-05,118250.0,118240.0,0.82200761]
[1752903238953,4.98e-05,118250.0,118240.0,0.83770761]
[1752903240301,4.98e-05,118250.0,118240.0,0.82200761]
[1752903242729,4.98e-05,118250.0,118240.0,0.83770761]
[1752903243368,4.98e-05,118250.0,118240.0,1.03098227]
[1752903243871,4.98e-05,118250.0,118240.0,1.11649255]
[1752903244086,4.98e-05,118250.0,118240.0,1.1310334]
[1752903245591,4.98e-05,118250.0,118240.0,0.55120942]
[1752903245807,4.98e-05,118250.0,118240.0,1.1310334]
[1752903246231,4.98e-05,118250.0,118240.0,0.55120942]
[1752903246442,4.98e-05,118250.0,118240.0,1.1310334]
[1752903249193,4.98e-05,118250.0,118240.0,1.1153334]
[1752903249974,4.98e-05,118250.0,118240.0,0.92205874]
[1752903251992,4.98e-05,118250.0,118240.0,1.1153334]
[1752903252947,4.98e-05,118250.0,118240.0,1.1304334]
[1752903263048,4.98e-05,118250.0,118240.0,1.1153334]
[1752903272569,4.98e-05,118250.0,118240.0,1.1148177]
[1752903273142,4.98e-05,118250.0,118240.0,0.53499372]
[1752903273358,4.98e-05,118250.0,118240.0,1.1148177]
[1752903287125,4.98e-05,118250.0,118240.0,0.90604304]
[1752903287332,4.98e-05,118250.0,118240.0,1.0993177]
[1752903288609,4.98e-05,118250.0,118240.0,1.1151177]
[1752903293670,4.98e-05,118250.0,118240.0,0.9866334]
[1752903293890,4.98e-05,118250.0,118240.0,1.1155534]
[1752903306950,4.98e-05,118250.0,118240.0,1.1299534]
[1752903308668,4.98e-05,118250.0,118240.0,1.70977738]
[1752903308877,4.98e-05,118250.0,118240.0,1.1299534]
[1752903314770,0.20533907,118280.0,118240.0,1.1299534]
[1752903314955,0.19663798,118280.0,118270.0,0.16910459]
[1752903315188,0.19868798,118280.0,118270.0,0.54694576]
[1752903316031,0.21658188,118280.0,118270.0,0.54694576]
[1752903316237,0.23458188,118280.0,118270.0,0.55640098]
[1752903316438,0.23458188,118280.0,118270.0,0.54794576]
[1752903316439,0.22858188,118280.0,118270.0,0.54794576]
[1752903316845,0.24158188,118280.0,118270.0,0.54894576]
[1752903317451,0.24158188,118280.0,118270.0,0.55740098]
[1752903317954,0.05389611,118280.0,118270.0,0.77806045]
[1752903318191,0.05184611,118280.0,118270.0,0.79740045]
[1752903318578,0.06030019,118280.0,118270.0,0.7895554]
[1752903318804,0.06235019,118280.0,118270.0,0.7895549]
[1752903319013,0.04935012,118280.0,118270.0,0.7885549]
[1752903319166,0.03135012,118280.0,118270.0,0.77910018]
[1752903319363,0.03135012,118280.0,118270.0,0.78110018]
[1752903319657,0.03135012,118280.0,118270.0,0.7895549]
[1752903320283,0.02289611,118280.0,118270.0,0.7895549]
[1752903321019,0.01444217,118280.0,118270.0,0.7895549]
[1752903321216,0.02289618,118280.0,118270.0,0.7895549]
[1752903321644,0.02289618,118280.0,118270.0,0.78110018]
[1752903322349,0.03135033,118280.0,118270.0,0.78110018]
[1752903322561,0.02289618,118280.0,118270.0,0.78110018]
[1752903323771,0.02289618,118280.0,118270.0,0.58782552]
[1752903323976,0.03135026,118280.0,118270.0,0.58782552]
[1752903324171,0.03135026,118280.0,118270.0,0.57937072]
[1752903324752,0.03980441,118280.0,118270.0,0.57937072]
[1752903324994,0.03980441,118280.0,118270.0,0.58782552]
[1752903325233,0.03135026,118280.0,118270.0,0.59628024]
[1752903325470,0.03135026,118280.0,118270.0,0.58782552]
[1752903325702,0.03135026,118280.0,118270.0,0.57937072]
[1752903325953,0.03135026,118280.0,118270.0,0.58782552]
[1752903326923,0.03135026,118280.0,118270.0,0.78110018]
[1752903327803,0.03135026,118280.0,118270.0,0.7895549]
[1752903328005,0.03135026,118280.0,118270.0,0.78110018]
[1752903328240,0.03135026,118280.0,118270.0,0.7895549]
[1752903328446,0.03135012,118280.0,118270.0,0.79620018]
[1752903328840,0.03135012,118280.0,118270.0,0.40119606]
[1752903329050,0.03135012,118280.0,118270.0,0.78774538]
[1752903329610,0.03980434,118280.0,118270.0,0.78774538]
[1752903329828,0.03135012,118280.0,118270.0,0.78774538]
[1752903330035,0.03135012,118280.0,118270.0,0.79620018]
[1752903330425,0.03135012,118280.0,118270.0,0.78774538]
[1752903331899,0.03135012,118280.0,118270.0,0.79620018]
[1752903333763,0.03135012,118280.0,118270.0,0.78774538]
[1752903333948,0.03980427,118280.0,118270.0,0.78774538]
[1752903334360,0.03135012,118280.0,118270.0,0.7962001]
[1752903334609,0.03135012,118280.0,118270.0,0.79620018]
[1752903335329,0.03135012,118280.0,118270.0,0.8046549]
[1752903336284,0.02289604,118280.0,118270.0,0.8046549]
[1752903336509,0.03135005,118280.0,118270.0,0.8046549]
[1752903336920,0.0398042,118280.0,118270.0,0.78774538]
[1752903337456,0.0398042,118280.0,118270.0,0.79620018]
[1752903337970,0.03135005,118280.0,118270.0,0.79620018]
[1752903338404,0.03980413,118280.0,118270.0,0.79620018]
[1752903338955,0.03980413,118280.0,118270.0,0.40119606]
[1752903339170,0.04825843,118280.0,118270.0,0.58601592]
[1752903339379,0.04825843,118280.0,118270.0,0.57756091]
[1752903339585,0.04825843,118280.0,118270.0,0.58601599]
[1752903339787,0.04825843,118280.0,118270.0,0.594471]
[1752903340166,0.04825843,118280.0,118270.0,0.57091599]
[1752903340368,0.0567128,118280.0,118270.0,0.57091599]
[1752903340567,0.0567128,118280.0,118270.0,0.579371]
[1752903340801,0.0567128,118280.0,118270.0,0.57091599]
[1752903341002,0.0567128,118280.0,118270.0,0.56246091]
[1752903341178,0.04825893,118280.0,118270.0,0.57091599]
[1752903341405,0.04825893,118280.0,118270.0,0.579371]
[1752903341789,0.04825893,118280.0,118270.0,0.57091599]
[1752903342109,0.03980456,118280.0,118270.0,0.57091592]
[1752903342262,0.03980456,118280.0,118270.0,0.56246091]
[1752903342471,0.048259,118280.0,118270.0,0.56246091]
[1752903342663,0.048259,118280.0,118270.0,0.57091599]
[1752903342828,0.03980456,118280.0,118270.0,0.579371]
[1752903343024,0.03980456,118280.0,118270.0,0.57091599]
[1752903343644,0.048259,118280.0,118270.0,0.57091599]
[1752903343755,0.04825893,118280.0,118270.0,0.57091599]
[1752903345049,0.04825893,118280.0,118270.0,0.579371]
[1752903345229,0.03980456,118280.0,118270.0,0.579371]
[1752903346673,0.03980456,118280.0,118270.0,0.594371]
[1752903346898,0.03980456,118280.0,118270.0,0.58591599]
[1752903347241,0.03980456,118280.0,118270.0,0.594371]
[1752903347829,0.03980448,118280.0,118270.0,0.594371]
[1752903348031,0.03980448,118280.0,118270.0,0.60282594]
[1752903350388,0.03775448,118280.0,118270.0,0.61128081]
[1752903351449,0.03775448,118280.0,118270.0,0.60282594]
[1752903352280,0.02930026,118280.0,118270.0,0.61128081]
[1752903352495,0.01740636,118280.0,118270.0,0.61128046]
[1752903352699,0.02586051,118280.0,118270.0,0.60282566]
[1752903352910,0.02586051,118280.0,118270.0,0.59437079]
[1752903353111,0.02586051,118280.0,118270.0,0.60282566]
[1752903353249,0.02586051,118280.0,118270.0,0.79610032]
[1752903353600,0.03431473,118280.0,118270.0,0.78764545]
[1752903353825,0.03431473,118280.0,118270.0,0.40109613]
[1752903354031,0.03431473,118280.0,118270.0,0.59437079]
[1752903354245,0.04567795,118280.0,118270.0,0.59437079]
[1752903354454,0.05413225,118280.0,118270.0,0.58591585]
[1752903354863,0.05413225,118280.0,118270.0,0.59437079]
[1752903355306,0.05413225,118280.0,118270.0,0.40109613]
[1752903355513,0.05413225,118280.0,118270.0,0.59437079]
[1752903355896,0.04567795,118280.0,118270.0,0.59437079]
[1752903356341,0.03722373,118280.0,118270.0,0.59437079]
[1752903356710,0.03722373,118280.0,118270.0,0.60282566]
[1752903358380,0.02876958,118280.0,118270.0,0.61128046]
[1752903358914,0.02876958,118280.0,118270.0,0.60282566]
[1752903359254,0.0372238,118280.0,118270.0,0.60282566]
[1752903359457,0.0372238,118280.0,118270.0,0.59437079]
[1752903359685,0.0372238,118280.0,118270.0,0.58591585]
[1752903359876,0.0372238,118280.0,118270.0,0.59437079]
[1752903360046,0.0372238,118280.0,118270.0,0.60282566]
[1752903360255,0.02876958,118280.0,118270.0,0.59437079]
[1752903360456,0.0372238,118280.0,118270.0,0.60282566]
[1752903360831,0.02876958,118280.0,118270.0,0.61128046]
[1752903361244,0.02876958,118280.0,118270.0,0.60282566]
[1752903361431,0.02876958,118280.0,118270.0,0.61128046]
[1752903361783,0.02876958,118280.0,118270.0,0.59437079]
[1752903361965,0.0372238,118280.0,118270.0,0.59437079]
[1752903362171,0.02876958,118280.0,118270.0,0.59437079]
[1752903362304,0.02876958,118280.0,118270.0,0.60282566]
[1752903362554,0.02876958,118280.0,118270.0,0.61128046]
[1752903362757,0.02876958,118280.0,118270.0,0.60282566]
[1752903362966,0.02876958,118280.0,118270.0,0.61128046]
[1752903363167,0.02876958,118280.0,118270.0,0.60282566]
[1752903363391,0.0372238,118280.0,118270.0,0.59437079]
[1752903363816,0.0372238,118280.0,118270.0,0.40109613]
[1752903364046,0.0372238,118280.0,118270.0,0.59437079]
[1752903364247,0.02876958,118280.0,118270.0,0.60282566]
[1752903364459,0.0372238,118280.0,118270.0,0.60282566]
[1752903364995,0.02876958,118280.0,118270.0,0.60282566]
[1752903365204,0.02876958,118280.0,118270.0,0.61128046]
[1752903366070,0.02876958,118280.0,118270.0,0.60282566]
[1752903366278,0.02876958,118280.0,118270.0,0.61128046]
[1752903366695,0.01186149,118280.0,118270.0,0.92080589]
[1752903388529,0.01186149,118280.0,118270.0,1.11408055]
[1752903388993,0.01186149,118280.0,118270.0,0.92080589]
[1752903390561,0.00049827,118280.0,118270.0,0.92080589]
[1752903391114,0.02067269,118280.0,118270.0,0.92080589]
[1752903392397,0.02067269,118280.0,118270.0,0.53425657]
[1752903392622,0.02067269,118280.0,118270.0,0.92080589]
[1752903393064,0.02067269,118280.0,118270.0,0.91880589]
[1752903393476,0.02067269,118280.0,118270.0,0.92080589]
[1752903393683,0.02067269,118280.0,118270.0,0.92180589]
[1752903397359,0.02067269,118280.0,118270.0,0.90560589]
[1752903397950,0.02067269,118280.0,118270.0,0.92180589]
[1752903399034,0.02269269,118280.0,118270.0,0.77672589]
[1752903399246,0.02269269,118280.0,118270.0,0.90556589]
[1752903399477,0.02067269,118280.0,118270.0,0.90556589]
[1752903400547,0.02067269,118280.0,118270.0,0.92176589]
[1752903402527,0.03899269,118280.0,118270.0,0.37011657]
[1752903402734,0.03899269,118280.0,118270.0,0.69223123]
[1752903402973,0.02269269,118280.0,118270.0,0.88550589]
[1752903403178,0.02269269,118280.0,118270.0,0.75666589]
[1752903403357,0.02269269,118280.0,118270.0,0.88546589]
[1752903403593,0.03114663,118280.0,118270.0,0.50657604]
[1752903403801,0.62916082,118280.0,118270.0,0.003]
[1752903404212,0.62916082,118280.0,118270.0,0.1318]
[1752903404420,0.43588616,118280.0,118270.0,0.1318]
[1752903404624,0.43588616,118280.0,118270.0,0.1288]
[1752903407079,0.2426115,118280.0,118270.0,0.37285402]
[1752903410499,0.2426115,118280.0,118270.0,0.54195861]
[1752903410749,0.07050121,118280.0,118270.0,0.54195861]
[1752903410971,0.02269269,118280.0,118270.0,0.56408856]
[1752903411197,0.0311467,118280.0,118270.0,0.57928863]
[1752903411422,0.0311467,118280.0,118270.0,0.59619815]
[1752903411651,0.04805522,118280.0,118270.0,0.57083369]
[1752903411875,0.04805522,118280.0,118270.0,0.57083376]
[1752903412103,0.04805507,118280.0,118270.0,0.5792887]
[1752903412428,0.05650951,118280.0,118270.0,0.57083376]
[1752903412653,0.04805507,118280.0,118270.0,0.57928877]
[1752903412870,0.0311467,118280.0,118270.0,0.59619836]
[1752903413095,0.03960085,118280.0,118270.0,0.58774371]
[1752903413322,0.0311467,118280.0,118270.0,0.79792804]
[1752903413556,0.04805522,118280.0,118270.0,0.57928884]
[1752903413778,0.03960085,118280.0,118270.0,0.58774385]
[1752903413994,0.03960085,118280.0,118270.0,0.59619872]
[1752903414219,0.03960085,118280.0,118270.0,0.59619879]
[1752903414426,0.0311467,118280.0,118270.0,0.60465331]
[1752903414671,0.03960078,118280.0,118270.0,0.59619851]
[1752903414901,0.02269269,118280.0,118270.0,0.59619851]
[1752903415161,0.0311467,118280.0,118270.0,0.60465331]
[1752903415379,0.02067269,118280.0,118270.0,0.79792761]
[1752903415595,0.02067269,118280.0,118270.0,0.89973789]
[1752903417485,0.00049827,118280.0,118270.0,0.89973789]
[1752903420395,0.00049827,118280.0,118270.0,0.91427874]
[1752903430525,0.00049827,118280.0,118270.0,1.1075534]
[1752903431552,0.00049827,118280.0,118270.0,1.4475534]
[1752903431986,0.00049827,118280.0,118270.0,1.4495534]
[1752903432195,0.00049827,118280.0,118270.0,1.4475534]
[1752903432588,0.00049827,118280.0,118270.0,1.4505534]
[1752903433619,0.00049827,118280.0,118270.0,1.4515534]
[1752903434014,0.00049827,118280.0,118270.0,1.4505534]
[1752903434605,0.00049827,118280.0,118270.0,1.4525534]
[1752903441838,0.00049827,118280.0,118270.0,1.25927874]
[1752903442110,0.00049827,118280.0,118270.0,1.4525534]
[1752903452093,0.00049827,118280.0,118270.0,1.4525134]
[1752903458560,0.00049827,118280.0,118270.0,1.3237534]
[1752903458765,0.00049827,118280.0,118270.0,1.4525134]
[1752903462654,0.00049827,118280.0,118270.0,1.13047874]
[1752903462860,0.00049827,118280.0,118270.0,1.25923874]
[1752903464210,0.00049827,118280.0,118270.0,1.13047874]
[1752903464418,0.00049827,118280.0,118270.0,1.25927874]
[1752903466349,0.00049827,118280.0,118270.0,1.4525534]
[1752903495811,0.00049827,118280.0,118270.0,1.3237534]
[1752903496012,0.00049827,118280.0,118270.0,1.4525134]
[1752903496653,0.00049827,118280.0,118270.0,1.3237534]
[1752903496802,0.00049827,118280.0,118270.0,1.4525134]
[1752903508995,0.00049827,118280.0,118270.0,1.468334]
[1752903509283,0.00049827,118280.0,118270.0,1.4525134]
[1752903521831,0.00049827,118280.0,118270.0,1.6553934]
[1752903527804,0.00049827,118280.0,118270.0,1.5266334]
[1752903527953,0.00049827,118280.0,118270.0,1.6553534]
[1752903529957,0.00049827,118280.0,118270.0,1.4524734]
[1752903531123,0.0004,118290.0,118280.0,0.20899381]
[1752903531415,0.0025298,118290.0,118280.0,1.08880769]
[1752903531782,0.0025298,118290.0,118280.0,1.09076769]
[1752903532762,0.0025298,118290.0,118280.0,1.09583769]
[1752903535115,0.0025298,118290.0,118280.0,1.11173769]
[1752903535467,0.0025298,118290.0,118280.0,1.09583769]
[1752903538044,0.0025298,118290.0,118280.0,1.09557703]
[1752903544085,0.0025298,118290.0,118280.0,1.11147703]
[1752903544821,0.17186623,118310.0,118300.0,0.20896093]
[1752903545018,4.978e-05,118310.0,118300.0,1.03844773]
[1752903545264,4.978e-05,118310.0,118300.0,1.04141773]
[1752903545761,4.978e-05,118310.0,118300.0,0.46159375]
[1752903545960,0.00704978,118310.0,118300.0,1.04241773]
[1752903546185,0.00704978,118310.0,118300.0,1.09241773]
[1752903546547,0.00704978,118310.0,118300.0,0.89914307]
[1752903546721,4.978e-05,118310.0,118300.0,0.89814307]
[1752903547010,4.978e-05,118310.0,118300.0,0.89914307]
[1752903547448,4.978e-05,118310.0,118300.0,0.90114307]
[1752903548436,0.00206978,118310.0,118300.0,0.51459375]
[1752903548651,0.00206978,118310.0,118300.0,0.88524307]
[1752903550448,0.00206978,118310.0,118300.0,0.90084307]
[1752903551084,0.00122455,118310.0,118300.0,0.88524307]
[1752903554049,0.00122455,118310.0,118300.0,0.49366375]
[1752903554254,0.04137627,118310.0,118300.0,0.67848583]
[1752903554506,0.05249814,118310.0,118300.0,0.50211669]
[1752903554694,0.06024317,118310.0,118300.0,0.48521132]
[1752903554916,0.06869496,118310.0,118300.0,0.50211662]
[1752903555065,0.05179145,118310.0,118300.0,0.88866594]
[1752903556768,0.06024332,118310.0,118300.0,0.88866594]
[1752903557066,0.06024324,118310.0,118300.0,0.88866594]
[1752903557281,0.06869518,118310.0,118300.0,0.88021336]
[1752903557485,0.06869518,118310.0,118300.0,0.88866601]
[1752903557705,0.06869518,118310.0,118300.0,0.89711859]
[1752903557942,0.06869518,118310.0,118300.0,0.51056927]
[1752903558134,0.06024324,118310.0,118300.0,0.88866601]
[1752903558396,0.06869518,118310.0,118300.0,0.89747859]
[1752903559267,0.05179145,118310.0,118300.0,0.89747859]
[1752903559697,0.03292145,118310.0,118300.0,0.89747859]
[1752903560287,0.03292145,118310.0,118300.0,0.51092927]
[1752903560504,0.04137324,118310.0,118300.0,0.89747859]
[1752903560708,0.06879525,118310.0,118300.0,0.46233065]
[1752903560920,0.06879525,118310.0,118300.0,0.85733255]
[1752903560921,0.06034324,118310.0,118300.0,0.85733255]
[1752903561123,0.04922145,118310.0,118300.0,0.85733255]
[1752903561328,0.05767317,118310.0,118300.0,0.85733255]
[1752903561557,0.05767317,118310.0,118300.0,0.47078323]
[1752903561762,0.05767317,118310.0,118300.0,0.88538753]
[1752903561947,0.05767317,118310.0,118300.0,0.89384018]
[1752903562406,0.05767317,118310.0,118300.0,0.50729086]
[1752903562607,0.06612496,118310.0,118300.0,0.89384018]
[1752903563135,0.04982496,118310.0,118300.0,0.89384018]
[1752903564502,0.0582769,118310.0,118300.0,0.89384018]
[1752903564759,0.08242898,118310.0,118300.0,0.87693495]
[1752903564961,0.0739769,118310.0,118300.0,0.87693495]
[1752903565438,0.08242891,118310.0,118300.0,0.87693495]
[1752903565644,0.0739769,118310.0,118300.0,0.87693495]
[1752903565863,0.04982496,118310.0,118300.0,0.88538753]
[1752903566496,0.0582769,118310.0,118300.0,0.87693495]
[1752903566697,0.0739769,118310.0,118300.0,0.88538774]
[1752903567097,0.0739769,118310.0,118300.0,0.89384039]
[1752903567307,0.03292145,118310.0,118300.0,0.89383996]
[1752903567481,0.04137324,118310.0,118300.0,0.89383996]
[1752903568508,0.03292145,118310.0,118300.0,0.89383996]
[1752903568688,0.04137317,118310.0,118300.0,0.89383996]
[1752903569851,0.04982504,118310.0,118300.0,0.89383996]
[1752903570082,0.04137317,118310.0,118300.0,0.89383996]
[1752903571175,0.04052794,118310.0,118300.0,0.89383996]
[1752903571562,0.04052794,118310.0,118300.0,0.89676996]
[1752903572036,0.02502794,118310.0,118300.0,0.89676996]
[1752903572456,0.03347973,118310.0,118300.0,0.89676996]
[1752903573174,0.02502794,118310.0,118300.0,0.89676996]
[1752903575310,0.02502794,118310.0,118300.0,0.51022064]
[1752903575517,0.02502794,118310.0,118300.0,0.89676996]
[1752903576589,0.02502794,118310.0,118300.0,0.89888996]
[1752903577822,0.03347988,118310.0,118300.0,0.87353201]
[1752903578009,0.03347981,118310.0,118300.0,0.87986459]
[1752903578320,0.02502794,118310.0,118300.0,0.87986459]
[1752903578636,0.02502794,118310.0,118300.0,0.88198459]
[1752903580338,0.04193167,118310.0,118300.0,0.88198466]
[1752903580538,0.0419316,118310.0,118300.0,0.89043724]
[1752903581379,0.03347973,118310.0,118300.0,0.89043724]
[1752903582815,0.03347973,118310.0,118300.0,0.88198474]
[1752903583033,0.03347973,118310.0,118300.0,0.89043732]
[1752903583864,0.03347973,118310.0,118300.0,0.76103732]
[1752903584031,0.03347973,118310.0,118300.0,0.89015732]
[1752903584838,0.0419316,118310.0,118300.0,0.89015732]
[1752903585773,0.03347973,118310.0,118300.0,0.89015732]
[1752903586178,0.03347973,118310.0,118300.0,0.503608]
[1752903586302,0.03347973,118310.0,118300.0,0.89015732]
[1752903586701,0.04193174,118310.0,118300.0,0.48670277]
[1752903586898,0.04193174,118310.0,118300.0,0.67997743]
[1752903587140,0.04193174,118310.0,118300.0,0.68631015]
[1752903587350,0.05038389,118310.0,118300.0,0.68631022]
[1752903587591,0.04193167,118310.0,118300.0,0.70321559]
[1752903587728,0.04193167,118310.0,118300.0,0.69476294]
[1752903587928,0.04193167,118310.0,118300.0,0.69688265]
[1752903588130,0.04193167,118310.0,118300.0,0.89015731]
[1752903588349,0.04193167,118310.0,118300.0,0.89860989]
[1752903588557,0.03347973,118310.0,118300.0,0.89860989]
[1752903588904,0.0419316,118310.0,118300.0,0.89860989]
[1752903590276,0.03347973,118310.0,118300.0,0.89860989]
[1752903591036,0.02418271,118310.0,118300.0,0.89860989]
[1752903591645,0.02418271,118310.0,118300.0,0.91360989]
[1752903591872,0.03263458,118310.0,118300.0,0.91360989]
[1752903592591,0.04108659,118310.0,118300.0,0.89670466]
[1752903592808,0.04108659,118310.0,118300.0,0.51015534]
[1752903593005,0.04108659,118310.0,118300.0,0.90515731]
[1752903593379,0.03263458,118310.0,118300.0,0.91360989]
[1752903593727,0.04108659,118310.0,118300.0,0.90515731]
[1752903594283,0.04108659,118310.0,118300.0,0.89670466]
[1752903594613,0.04108652,118310.0,118300.0,0.90515731]
[1752903595144,0.02418271,118310.0,118300.0,0.91360989]
[1752903595345,0.03263458,118310.0,118300.0,0.91360989]
[1752903596047,0.0326345,118310.0,118300.0,0.91360989]
[1752903599919,0.04108651,118310.0,118300.0,0.90515731]
[1752903600201,0.04108644,118310.0,118300.0,0.90515731]
[1752903601587,0.04108644,118310.0,118300.0,0.89670466]
[1752903601797,0.04108644,118310.0,118300.0,0.91360989]
[1752903601997,0.04108644,118310.0,118300.0,0.90515731]
[1752903602419,0.04108644,118310.0,118300.0,0.91360989]
[1752903602861,0.0326345,118310.0,118300.0,0.91360989]
[1752903604047,0.04108644,118310.0,118300.0,0.91360989]
[1752903604187,0.04953845,118310.0,118300.0,0.89670466]
[1752903604609,0.04108644,118310.0,118300.0,0.90515731]
[1752903605583,0.0326345,118310.0,118300.0,0.91360989]
[1752903606024,0.0326345,118310.0,118300.0,0.72033523]
[1752903607459,0.0326345,118310.0,118300.0,0.91360989]
[1752903608263,0.04108644,118310.0,118300.0,0.90515731]
[1752903608676,0.04108644,118310.0,118300.0,0.91360989]
[1752903608823,0.04108644,118310.0,118300.0,0.90515731]
[1752903609190,0.04108644,118310.0,118300.0,0.91360989]
[1752903609336,0.04108644,118310.0,118300.0,0.72033523]
[1752903610068,0.04108644,118310.0,118300.0,0.71156265]
[1752903610478,0.04108644,118310.0,118300.0,0.91328989]
[1752903610815,0.04108637,118310.0,118300.0,0.91328989]
[1752903611042,0.03178927,118310.0,118300.0,0.91292189]
[1752903611472,0.03178927,118310.0,118300.0,0.90446931]
[1752903611701,0.04024114,118310.0,118300.0,0.91292189]
[1752903612288,0.02535538,118310.0,118300.0,0.91292189]
[1752903613866,0.05249696,118310.0,118300.0,0.91292189]
[1752903614268,0.02535538,118310.0,118300.0,0.91292189]
[1752903615441,0.01690351,118310.0,118300.0,0.91292189]
[1752903616054,0.02535545,118310.0,118300.0,0.91292189]
[1752903616258,0.02535545,118310.0,118300.0,0.90446931]
[1752903616467,0.01690351,118310.0,118300.0,0.91292189]
[1752903616667,0.02555424,118320.0,118310.0,0.18595207]
[1752903616900,0.02715424,118320.0,118310.0,0.57485225]
[1752903617086,0.01870266,118320.0,118310.0,0.57794225]
[1752903617286,0.02715424,118320.0,118310.0,0.44914225]
[1752903617483,0.02715424,118320.0,118310.0,0.57156003]
[1752903617887,0.05561845,118320.0,118310.0,0.57156003]
[1752903618306,0.05561845,118320.0,118310.0,0.56310774]
[1752903619220,0.05561845,118320.0,118310.0,0.57156003]
[1752903619599,0.05587688,118320.0,118310.0,0.57256003]
[1752903619800,0.05587688,118320.0,118310.0,0.30400741]
[1752903619801,0.22491001,118320.0,118310.0,0.30400741]
[1752903620008,0.22491001,118320.0,118310.0,0.50573444]
[1752903620826,0.22431517,118320.0,118310.0,0.50547601]
[1752903621040,0.23276682,118320.0,118310.0,0.50547601]
[1752903621278,0.23276682,118320.0,118310.0,0.49702364]
[1752903621478,0.23276682,118320.0,118310.0,0.46243563]
[1752903621628,0.23276682,118320.0,118310.0,0.59123563]
[1752903622899,0.23276682,118320.0,118310.0,0.49702364]
[1752903623102,0.23276682,118320.0,118310.0,0.50547601]
[1752903625209,0.04696644,118320.0,118310.0,0.50547601]
[1752903625420,0.05541788,118320.0,118310.0,0.5297283]
[1752903625626,0.05381788,118320.0,118310.0,0.53818052]
[1752903625835,0.05381788,118320.0,118310.0,0.62394014]
[1752903626034,0.06226939,118320.0,118310.0,0.62394014]
[1752903626335,0.06226939,118320.0,118310.0,0.63239229]
[1752903626621,0.06226939,118320.0,118310.0,0.62394014]
[1752903627507,0.06226939,118320.0,118310.0,0.63239229]
[1752903627721,0.06226939,118320.0,118310.0,0.59968792]
[1752903627930,0.06226939,118320.0,118310.0,0.60814014]
[1752903628139,0.06226939,118320.0,118310.0,0.61548792]
[1752903628348,0.06226939,118320.0,118310.0,0.62394014]
[1752903629661,0.06226939,118320.0,118310.0,0.54663267]
[1752903629881,0.06226939,118320.0,118310.0,0.53818052]
[1752903629882,0.05381781,118320.0,118310.0,0.53818052]
[1752903630077,0.06226932,118320.0,118310.0,0.53818052]
[1752903630331,0.05381781,118320.0,118310.0,0.5466326]
[1752903630564,0.06226932,118320.0,118310.0,0.54663267]
[1752903631230,0.06226932,118320.0,118310.0,0.53818052]
[1752903631658,0.06226932,118320.0,118310.0,0.54663267]
[1752903631881,0.06226932,118320.0,118310.0,0.53818052]
[1752903632081,0.05381781,118320.0,118310.0,0.54663267]
[1752903632403,0.06226932,118320.0,118310.0,0.53818052]
[1752903632793,0.06226932,118320.0,118310.0,0.54663267]
[1752903633006,0.06226932,118320.0,118310.0,0.53818052]
[1752903633996,0.06226932,118320.0,118310.0,0.54663267]
[1752903634883,0.06226932,118320.0,118310.0,0.34490586]
[1752903635100,0.06226932,118320.0,118310.0,0.53818052]
[1752903635553,0.06226932,118320.0,118310.0,0.34490586]
[1752903635780,0.06226932,118320.0,118310.0,0.54663267]
[1752903636464,0.05381781,118320.0,118310.0,0.35335801]
[1752903636672,0.05381781,118320.0,118310.0,0.54663267]
[1752903636880,0.06226932,118320.0,118310.0,0.54663267]
[1752903637093,0.05381781,118320.0,118310.0,0.54663267]
[1752903637740,0.06226932,118320.0,118310.0,0.54663267]
[1752903638183,0.05381781,118320.0,118310.0,0.54663267]
[1752903638383,0.05381781,118320.0,118310.0,0.55508475]
[1752903638798,0.06226932,118320.0,118310.0,0.34490586]
[1752903639001,0.06226925,118320.0,118310.0,0.35335801]
[1752903639217,0.7673763,118320.0,118310.0,0.001]
[1752903639428,0.82488838,118320.0,118310.0,0.001]
[1752903639630,0.7978618,118320.0,118310.0,0.001]
[1752903640042,0.7673763,118320.0,118310.0,0.001]
[1752903640269,1.06157989,118320.0,118310.0,0.001]
[1752903640710,1.06857989,118320.0,118310.0,0.002]
[1752903641748,0.87530523,118320.0,118310.0,0.002]
[1752903641954,0.87530523,118320.0,118310.0,0.001]
[1752903642391,0.88530523,118320.0,118310.0,0.002]
[1752903643256,0.97106485,118320.0,118310.0,0.002]
[1752903643468,1.16433951,118320.0,118310.0,0.002]
[1752903643874,0.69203057,118320.0,118310.0,0.002]
[1752903644079,0.88530523,118320.0,118310.0,0.002]
[1752903644283,0.69203057,118320.0,118310.0,0.002]
[1752903644459,0.88530523,118320.0,118310.0,0.002]
[1752903645042,0.69203057,118320.0,118310.0,0.19527466]
[1752903645461,0.82083057,118320.0,118310.0,0.002]
[1752903645689,0.82083057,118320.0,118310.0,0.19527466]
[1752903646478,0.82083057,118320.0,118310.0,0.002]
[1752903646688,0.82083057,118320.0,118310.0,0.19527466]
[1752903647515,0.69203057,118320.0,118310.0,0.19527466]
[1752903651845,0.69093057,118320.0,118310.0,0.19527466]
[1752903658447,0.68949057,118320.0,118310.0,0.19527466]
[1752903659271,0.67319057,118320.0,118310.0,0.19527466]
[1752903661457,0.67319057,118320.0,118310.0,0.002]
[1752903661690,0.75895019,118320.0,118310.0,0.002]
[1752903661899,0.75895019,118320.0,118310.0,0.19527466]
[1752903662694,0.67319057,118320.0,118310.0,0.19527466]
[1752903665852,0.80199057,118320.0,118310.0,0.19527466]
[1752903672634,0.80199057,118320.0,118310.0,0.002]
[1752903673062,0.80199057,118320.0,118310.0,0.19527466]
[1752903673480,0.78659057,118320.0,118310.0,0.19527466]
[1752903677352,0.75922636,118320.0,118310.0,0.19527466]
[1752903678185,0.75922636,118320.0,118310.0,0.21057466]
[1752903680282,0.75922636,118320.0,118310.0,0.0173]
[1752903680479,0.75922636,118320.0,118310.0,0.21057466]
[1752903680850,0.79417131,118320.0,118310.0,0.21057466]
[1752903682737,0.79417131,118320.0,118310.0,0.21354466]
[1752903684691,0.81987602,118320.0,118310.0,0.21354466]